bitfinex-derivatives/quotes_BTCF0:USTF0_20251204
["timestamp","ask_amount","ask_price","bid_price","bid_amount"]
[1764869957747,0.41995002,92007.0,92006.0,0.00227172]
[1764869958251,0.42004444,92007.0,92006.0,0.00027172]
[1764869958547,0.89842444,92007.0,92006.0,0.05617172]
[1764869958748,0.36431444,92007.0,92006.0,0.05617172]
[1764869959054,0.36189442,92007.0,92006.0,0.05617172]
[1764869959938,0.36889442,92007.0,92006.0,0.05617172]
[1764869960746,0.00809442,92007.0,92006.0,0.05617172]
[1764869960950,0.00809442,92007.0,92006.0,0.06703752]
[1764869961162,0.00809442,92007.0,92006.0,0.42783752]
[1764869961450,4.42e-06,92007.0,92006.0,0.42783752]
[1764869962252,9.875e-05,92007.0,92006.0,0.42783752]
[1764869967454,0.00016299,92022.0,92021.0,0.066764]
[1764869967653,0.00258301,92022.0,92021.0,0.066764]
[1764869967953,0.00258301,92022.0,92018.0,0.3608]
[1764869967954,0.010864,92021.0,92018.0,0.3608]
[1764869968154,0.05915002,92019.0,92018.0,0.3608]
[1764869968452,0.05924118,92019.0,92018.0,0.3608]
[1764869968756,0.05673,92008.0,92007.0,0.0559]
[1764869968946,0.05673,92008.0,92007.0,0.07234]
[1764869970043,0.06173,92008.0,92007.0,0.07434]
[1764869972259,0.06173,92008.0,92007.0,0.0579]
[1764869972459,0.06173,92008.0,92007.0,0.03036]
[1764869972656,0.06184011,92008.0,92007.0,0.03036]
[1764869973454,0.08455072,92008.0,92007.0,0.0579]
[1764869973654,0.08455072,92008.0,92007.0,0.002]
[1764869974664,0.08444072,92008.0,92007.0,0.0786]
[1764869974855,0.06173011,92008.0,92007.0,0.0786]
[1764869975163,0.06173011,92008.0,92007.0,0.06084]
[1764869975164,0.08445313,92008.0,92007.0,0.06084]
[1764869975458,0.08445313,92008.0,92007.0,0.002]
[1764869975657,0.08445313,92008.0,92007.0,0.03098]
[1764869976566,0.08445313,92008.0,92007.0,0.002]
[1764869977450,0.0108656,92007.0,92006.0,1.72e-06]
[1764869977658,0.0674881,91986.0,91974.0,0.0108695]
[1764869977852,0.0674881,91986.0,91973.0,0.3608]
[1764869977853,0.0108675,91992.0,91990.0,0.05884]
[1764869978160,0.00016299,91995.0,91989.0,0.02898]
[1764869978161,0.05662,91990.0,91989.0,0.02898]
[1764869978351,0.0674881,91986.0,91985.0,0.41964]
[1764869978553,0.06990812,91986.0,91985.0,0.3608]
[1764869978959,0.06990812,91986.0,91985.0,0.38978]
[1764869979464,0.0926445,91986.0,91985.0,0.02898]
[1764869979659,0.0926445,91986.0,91973.0,0.3608]
[1764869979660,0.0674894,91975.0,91974.0,0.05884]
[1764869979868,0.06761388,91975.0,91974.0,0.05884]
[1764869980565,0.53561448,91975.0,91974.0,0.05884]
[1764869980759,0.00012448,91975.0,91974.0,0.05884]
[1764869981358,0.0025445,91975.0,91974.0,0.05884]
[1764869981652,0.0720339,91975.0,91974.0,0.06184]
[1764869981868,0.0440639,91975.0,91974.0,0.06584]
[1764869982264,0.04164388,91975.0,91974.0,0.06584]
[1764869982662,0.00212448,91975.0,91974.0,0.06584]
[1764869983663,0.3608,91982.0,91974.0,0.06584]
[1764869983874,0.3608,91982.0,91981.0,0.05884]
[1764869984753,0.0001017,91982.0,91981.0,0.05884]
[1764869985158,0.0021017,91982.0,91981.0,0.06184]
[1764869985865,0.0021017,91982.0,91981.0,0.06484]
[1764869986467,0.0578217,91982.0,91981.0,0.06484]
[1764869987073,0.08054288,91982.0,91981.0,0.006]
[1764869987373,0.44134288,91982.0,91981.0,0.006]
[1764869992370,0.4186217,91982.0,91981.0,0.06451]
[1764869992575,0.0578217,91982.0,91981.0,0.06451]
[1764869992773,0.5374217,91982.0,91981.0,0.06451]
[1764869992967,0.5647417,91982.0,91981.0,0.06451]
[1764869993272,0.0021017,91982.0,91981.0,0.06451]
[1764869993575,0.0578217,91982.0,91981.0,0.06451]
[1764869993976,0.4294903,91982.0,91981.0,0.06451]
[1764869994766,0.0578217,91982.0,91981.0,0.06451]
[1764869995978,0.0021017,91982.0,91981.0,0.06451]
[1764869996270,0.0293917,91982.0,91981.0,0.06451]
[1764869997879,0.0578217,91982.0,91981.0,0.06451]
[1764869998068,0.4186217,91982.0,91981.0,0.006]
[1764869998268,0.44135269,91982.0,91981.0,0.06451]
[1764869998469,0.3901917,91982.0,91981.0,0.06451]
[1764869998871,0.0293917,91982.0,91981.0,0.06451]
[1764869999178,0.0686903,91982.0,91981.0,0.06451]
[1764870000076,0.09170709,91982.0,91981.0,0.006]
[1764870000377,0.45250709,91982.0,91981.0,0.006]
[1764870000578,0.45250709,91982.0,91981.0,0.06451]
[1764870000778,0.94855849,91982.0,91981.0,0.06451]
[1764870000982,0.44163849,91982.0,91981.0,0.06451]
[1764870001275,0.5363117,91982.0,91981.0,0.06451]
[1764870001479,0.5647417,91982.0,91981.0,0.06451]
[1764870001778,0.9255417,91982.0,91981.0,0.06451]
[1764870002279,0.5090217,91982.0,91981.0,0.06451]
[1764870002578,0.0021017,91982.0,91981.0,0.06451]
[1764870003772,0.0573017,91982.0,91981.0,0.06451]
[1764870003980,0.0021017,91982.0,91981.0,0.06451]
[1764870004175,0.0667004,91967.0,91966.0,0.00027184]
[1764870004379,0.5736204,91967.0,91966.0,0.05855162]
[1764870004572,0.43980565,91967.0,91966.0,0.05743184]
[1764870004880,0.93044605,91967.0,91966.0,0.05743184]
[1764870005069,0.95835605,91967.0,91966.0,0.05743184]
[1764870005266,0.95835605,91967.0,91966.0,0.00027184]
[1764870006075,0.0108711,91961.0,91960.0,9.58e-05]
[1764870006278,0.06912112,91961.0,91960.0,9.58e-05]
[1764870006474,0.09217458,91961.0,91960.0,9.58e-05]
[1764870007282,0.09217458,91961.0,91944.0,0.05827978]
[1764870007283,0.066703,91945.0,91944.0,0.05827978]
[1764870007591,0.066703,91945.0,91920.0,0.07770638]
[1764870007592,0.0108747,91930.0,91920.0,0.07770638]
[1764870007880,0.05825002,91927.0,91926.0,0.00017321]
[1764870008089,0.08129509,91927.0,91926.0,0.00017321]
[1764870008380,0.0108765,91916.0,91900.0,0.01776]
[1764870008573,0.3066582,91910.0,91909.0,0.05716]
[1764870008770,0.0108767,91914.0,91900.0,0.01776]
[1764870008771,0.02792,91901.0,91900.0,0.04612]
[1764870008980,0.00242002,91901.0,91900.0,0.07492]
[1764870009284,0.05596215,91901.0,91900.0,0.05716]
[1764870009480,0.02805215,91901.0,91900.0,0.05716]
[1764870009683,0.05596215,91901.0,91900.0,0.02836]
[1764870009873,0.00013215,91901.0,91900.0,0.05716]
[1764870010075,0.00255217,91901.0,91900.0,0.05716]
[1764870010383,0.00255217,91901.0,91900.0,0.004]
[1764870010585,0.05838217,91901.0,91900.0,0.004]
[1764870010773,0.06038217,91901.0,91900.0,0.004]
[1764870011286,0.05583,91887.0,91886.0,0.00027208]
[1764870011477,8.801e-05,91887.0,91886.0,0.05743208]
[1764870011677,0.00250803,91887.0,91886.0,0.05743208]
[1764870011977,0.05833803,91887.0,91886.0,0.05743208]
[1764870012176,0.05833803,91887.0,91886.0,0.00027208]
[1764870012881,8.801e-05,91887.0,91886.0,0.05743208]
[1764870013186,0.00250803,91887.0,91886.0,0.05743208]
[1764870013385,0.00450803,91887.0,91886.0,0.05743208]
[1764870013574,0.00450803,91887.0,91886.0,0.05943208]
[1764870013774,0.06033803,91887.0,91886.0,0.00227208]
[1764870014582,0.12639521,91887.0,91886.0,0.00227208]
[1764870015886,0.63447521,91887.0,91886.0,0.05943208]
[1764870016183,0.63447521,91887.0,91886.0,0.00227208]
[1764870017082,0.63447521,91887.0,91886.0,0.05943208]
[1764870017385,0.06814519,91887.0,91886.0,0.05943208]
[1764870018285,0.06814519,91887.0,91886.0,0.00227208]
[1764870018286,0.12397519,91887.0,91886.0,0.00227208]
[1764870019297,0.12397519,91887.0,91886.0,0.05943208]
[1764870019691,0.06814519,91887.0,91886.0,0.05943208]
[1764870020087,0.12397519,91887.0,91886.0,0.05943208]
[1764870020986,0.12397519,91887.0,91886.0,0.00227208]
[1764870021187,0.12397519,91887.0,91886.0,0.03063208]
[1764870021882,0.12397519,91887.0,91886.0,0.00227208]
[1764870022487,0.12397519,91887.0,91886.0,0.05943208]
[1764870022682,0.06814519,91887.0,91886.0,0.05943208]
[1764870023286,0.13485499,91887.0,91886.0,0.00227208]
[1764870023886,0.13485499,91887.0,91886.0,0.05943208]
[1764870026381,0.13485499,91887.0,91886.0,0.00227208]
[1764870027689,0.13485499,91887.0,91845.0,0.3608]
[1764870027690,0.05583,91847.0,91845.0,0.3608]
[1764870027898,0.12351,91847.0,91845.0,0.3608]
[1764870028185,0.18956718,91847.0,91845.0,0.3608]
[1764870028582,0.12188718,91847.0,91846.0,0.0286322]
[1764870028887,0.62801322,91847.0,91846.0,0.0002722]
[1764870029193,0.05583,91833.0,91832.0,0.3608]
[1764870029380,0.5204847,91846.0,91845.0,0.02836]
[1764870029579,0.55082472,91846.0,91845.0,0.02836]
[1764870029782,0.5780772,91846.0,91828.0,0.00693856]
[1764870030080,0.05583,91829.0,91828.0,0.00693856]
[1764870030285,0.12188718,91829.0,91828.0,0.00693856]
[1764870030489,0.1219705,91829.0,91828.0,0.06409856]
[1764870030795,0.0661405,91829.0,91828.0,0.06409856]
[1764870031089,0.1219705,91829.0,91828.0,0.06409856]
[1764870031286,0.1219705,91829.0,91828.0,0.00693856]
[1764870031488,0.0661405,91829.0,91828.0,0.06409856]
[1764870032287,0.0661405,91829.0,91828.0,0.42489856]
[1764870032681,0.0770272,91829.0,91828.0,0.42489856]
[1764870032884,0.0780272,91829.0,91828.0,0.42489856]
[1764870033185,0.0800272,91829.0,91828.0,0.06409856]
[1764870033590,0.0780272,91829.0,91828.0,0.06409856]
[1764870033893,0.0800272,91829.0,91828.0,0.06409856]
[1764870034393,0.0790272,91829.0,91828.0,0.06409856]
[1764870034583,0.0661405,91829.0,91828.0,0.06409856]
[1764870034780,0.0800272,91829.0,91828.0,0.06409856]
[1764870035388,0.0820272,91829.0,91828.0,0.06409856]
[1764870035994,0.1386472,91829.0,91828.0,0.00693856]
[1764870036296,0.16467761,91829.0,91828.0,0.00693856]
[1764870037493,0.05862,91809.0,91808.0,4e-05]
[1764870037799,0.12477979,91809.0,91808.0,0.0689792]
[1764870038395,0.12477979,91809.0,91808.0,0.0392492]
[1764870038604,0.06615979,91809.0,91808.0,0.0689792]
[1764870038891,0.06715979,91809.0,91808.0,0.0689792]
[1764870039093,0.00016332,91818.0,91817.0,0.0689381]
[1764870039695,0.3608,91830.0,91829.0,0.05805]
[1764870039897,0.38685718,91830.0,91829.0,0.05805]
[1764870040086,0.3609342,91830.0,91829.0,0.05805]
[1764870040286,0.0001342,91830.0,91829.0,0.05805]
[1764870040796,0.00016332,91839.0,91838.0,0.0689356]
[1764870040998,0.38987,91863.0,91862.0,0.05805]
[1764870041299,0.38686761,91863.0,91862.0,0.05805]
[1764870041806,0.3869776,91863.0,91862.0,0.05805]
[1764870042093,0.0321776,91863.0,91862.0,0.05805]
[1764870042299,0.0331776,91863.0,91862.0,0.05805]
[1764870043487,0.00310999,91863.0,91862.0,0.05905]
[1764870043690,0.00210999,91863.0,91862.0,0.05905]
[1764870043997,0.00016332,91872.0,91862.0,0.05905]
[1764870043998,0.00016332,91872.0,91871.0,0.0827817]
[1764870044194,0.01104492,91872.0,91871.0,0.0719]
[1764870044395,0.00016332,91872.0,91871.0,0.0719]
[1764870044694,0.00258334,91872.0,91871.0,0.0563]
[1764870044891,0.00016332,91872.0,91871.0,0.0563]
[1764870045087,0.00458334,91872.0,91871.0,0.0573]
[1764870045285,0.00216332,91872.0,91871.0,0.0573]
[1764870045499,0.00216332,91872.0,91871.0,0.0583]
[1764870045698,0.03062332,91872.0,91871.0,0.0583]
[1764870045890,0.42104332,91872.0,91871.0,0.002]
[1764870046091,0.44672428,91872.0,91871.0,0.002]
[1764870046606,0.44672428,91872.0,91871.0,0.003]
[1764870047198,0.45072428,91872.0,91871.0,0.002]
[1764870047601,0.45272428,91872.0,91871.0,0.001]
[1764870047805,0.01705,91871.0,91862.0,0.0108827]
[1764870048001,0.00242002,91863.0,91862.0,0.0671827]
[1764870048189,0.00242002,91863.0,91862.0,0.0563]
[1764870048389,0.02568096,91863.0,91862.0,0.0563]
[1764870048692,0.0108825,91865.0,91852.0,0.3608]
[1764870048693,0.0108825,91865.0,91863.0,0.02923]
[1764870048889,0.02811111,91864.0,91863.0,0.0563]
[1764870049093,0.02569109,91864.0,91863.0,0.0563]
[1764870049311,0.02569109,91864.0,91863.0,0.0671827]
[1764870049608,0.0108835,91857.0,91854.0,0.0108837]
[1764870049908,0.0108835,91857.0,91852.0,0.3608]
[1764870049909,0.0393435,91857.0,91856.0,0.02923]
[1764870050101,0.0650442,91857.0,91856.0,0.02923]
[1764870051204,0.0986642,91857.0,91856.0,0.001]
[1764870051504,0.0689637,91854.0,91843.0,0.3608]
[1764870051699,0.09708442,91854.0,91843.0,0.3608]
[1764870053204,0.09708442,91854.0,91846.0,0.0108846]
[1764870053404,0.0257007,91854.0,91853.0,0.05646332]
[1764870053604,0.002,91857.0,91856.0,0.0671835]
[1764870053905,0.010883,91861.0,91860.0,0.0563]
[1764870054106,0.03660862,91861.0,91860.0,0.0563]
[1764870054405,0.03660862,91861.0,91860.0,0.067183]
[1764870054406,0.02572562,91861.0,91860.0,0.067183]
[1764870055008,0.02572562,91861.0,91860.0,0.0563]
[1764870056292,0.02572562,91861.0,91854.0,0.3608]
[1764870056293,0.0108836,91857.0,91854.0,0.3608]
[1764870056493,0.02572562,91861.0,91853.0,0.00016332]
[1764870056494,0.0689637,91854.0,91853.0,0.00016332]
[1764870056699,0.09710934,91854.0,91853.0,0.00016332]
[1764870056904,0.45790934,91854.0,91853.0,0.00016332]
[1764870057812,0.45990934,91854.0,91853.0,0.00016332]
[1764870059193,0.46490934,91854.0,91853.0,0.00116332]
[1764870059598,0.43818372,91854.0,91853.0,0.00116332]
[1764870059901,0.43718372,91854.0,91853.0,0.00116332]
[1764870060107,0.01705,91845.0,91833.0,0.3608]
[1764870060602,0.05808,91834.0,91833.0,0.3608]
[1764870060910,0.05808,91834.0,91833.0,0.39003]
[1764870061300,0.05808,91834.0,91833.0,0.3608]
[1764870061499,0.0689672,91825.0,91824.0,0.00016332]
[1764870061702,0.07138722,91825.0,91824.0,0.02939332]
[1764870063006,0.07538722,91825.0,91824.0,0.03039332]
[1764870063202,0.06308,91825.0,91824.0,0.06835062]
[1764870063400,0.005,91825.0,91824.0,0.06835062]
[1764870063600,0.006,91825.0,91824.0,0.06835062]
[1764870064102,0.00016332,91843.0,91842.0,0.0681452]
[1764870064404,0.0108824,91866.0,91859.0,0.010883]
[1764870064609,0.03097002,91860.0,91859.0,0.05726]
[1764870064908,0.04185312,91860.0,91859.0,0.05726]
[1764870065711,0.04285312,91860.0,91859.0,0.05926]
[1764870066110,0.04185312,91860.0,91859.0,0.05726]
[1764870066312,0.0434331,91860.0,91859.0,0.05826]
[1764870066608,0.4322731,91860.0,91859.0,0.001]
[1764870067705,0.4322731,91860.0,91850.0,0.00016332]
[1764870067706,0.0664741,91851.0,91850.0,0.00016332]
[1764870067897,0.06889412,91851.0,91850.0,0.00016332]
[1764870069002,0.06101002,91851.0,91850.0,0.00116332]
[1764870069302,0.004,91851.0,91850.0,0.06930752]
[1764870071011,0.003,91851.0,91850.0,0.06930752]
[1764870071213,0.003,91851.0,91850.0,0.05842332]
[1764870071412,0.003,91851.0,91850.0,0.06930752]
[1764870071612,0.010884,91852.0,91851.0,0.05726]
[1764870072900,0.001,91852.0,91851.0,0.06326]
[1764870073206,0.001,91852.0,91851.0,0.06426]
[1764870074415,0.0108833,91858.0,91857.0,0.0681434]
[1764870074601,0.22244363,91861.0,91860.0,0.068143]
[1764870074602,0.0108829,91861.0,91860.0,0.068143]
[1764870074803,0.00016332,91869.0,91867.0,0.05726]
[1764870075013,0.1600321,91868.0,91867.0,0.05726]
[1764870075214,0.1870721,91868.0,91867.0,0.05726]
[1764870075604,0.1870721,91868.0,91867.0,0.02736]
[1764870075806,0.0394327,91863.0,91862.0,0.05726]
[1764870076013,0.0394327,91863.0,91857.0,0.001]
[1764870076014,0.0664733,91858.0,91857.0,0.001]
[1764870076210,0.06889332,91858.0,91857.0,0.001]
[1764870076710,0.06889332,91858.0,91857.0,0.05826]
[1764870077018,0.05559,91858.0,91857.0,0.0681434]
[1764870077217,0.22244363,91867.0,91859.0,0.0108831]
[1764870077715,0.22244363,91867.0,91859.0,0.0681431]
[1764870077716,0.03097002,91860.0,91859.0,0.0681431]
[1764870078021,0.02855,91860.0,91859.0,0.0681431]
[1764870078314,0.05559,91860.0,91859.0,0.05826]
[1764870078718,0.05559,91860.0,91859.0,0.05726]
[1764870078910,0.05659,91860.0,91859.0,0.05926]
[1764870079319,0.07362,91860.0,91859.0,0.002]
[1764870079619,0.07462,91860.0,91859.0,0.002]
[1764870080617,0.07462,91860.0,91856.0,0.3608]
[1764870080618,0.05559,91857.0,91856.0,0.3608]
[1764870080819,0.02855,91857.0,91856.0,0.41806]
[1764870081922,0.3716817,91872.0,91868.0,0.05726]
[1764870082113,0.01705,91884.0,91868.0,0.05726]
[1764870082315,0.0108805,91882.0,91868.0,0.05726]
[1764870082717,0.0108805,91882.0,91880.0,0.05726]
[1764870082916,0.0394305,91882.0,91881.0,0.05726]
[1764870083119,0.05559,91882.0,91874.0,0.3716813]
[1764870083318,0.04185132,91875.0,91874.0,0.4289413]
[1764870083519,0.0394313,91875.0,91874.0,0.4289413]
[1764870083720,0.0394313,91875.0,91874.0,0.41806]
[1764870084315,0.0704713,91875.0,91874.0,0.05826]
[1764870085018,0.0704713,91875.0,91874.0,0.001]
[1764870085522,0.0724713,91875.0,91874.0,0.001]
[1764870086624,0.4332713,91875.0,91874.0,0.001]
[1764870089213,0.0664723,91866.0,91865.0,0.00016332]
[1764870089418,0.06889232,91866.0,91865.0,0.00016332]
[1764870090725,0.06989232,91866.0,91865.0,0.00016332]
[1764870090922,0.07189232,91866.0,91865.0,0.00116332]
[1764870091627,0.07189232,91866.0,91865.0,0.05842332]
[1764870091827,0.003,91866.0,91865.0,0.41922332]
[1764870092828,0.0108815,91873.0,91872.0,0.05726]
[1764870093028,0.0664715,91873.0,91872.0,0.05726]
[1764870093225,0.0664715,91873.0,91865.0,0.39124869]
[1764870093226,0.0664722,91867.0,91865.0,0.39124869]
[1764870093526,0.05559,91866.0,91865.0,0.44850869]
[1764870093829,0.05559,91866.0,91865.0,0.41922332]
[1764870094028,0.05559,91866.0,91865.0,0.41822332]
[1764870094632,0.05759,91866.0,91865.0,0.41922332]
[1764870094830,0.05859,91866.0,91865.0,0.41922332]
[1764870095033,0.003,91866.0,91865.0,0.41922332]
[1764870096732,0.06256,91866.0,91865.0,0.41922332]
[1764870097236,0.003,91866.0,91865.0,0.41922332]
[1764870098531,0.0108812,91876.0,91875.0,0.0668913]
[1764870098731,0.0108812,91876.0,91874.0,0.3608]
[1764870098732,0.05956,91875.0,91874.0,0.3608]
[1764870099028,0.05956,91870.0,91869.0,0.0386919]
[1764870099217,0.3608,91882.0,91869.0,0.0668919]
[1764870099420,0.0405518,91871.0,91870.0,0.05601]
[1764870101027,0.0425518,91871.0,91870.0,0.05701]
[1764870101228,0.0435518,91871.0,91870.0,0.05701]
[1764870101423,0.0734418,91871.0,91870.0,0.05701]
[1764870102024,0.06256,91871.0,91870.0,0.05701]
[1764870105936,0.003,91871.0,91870.0,0.05701]
[1764870106143,0.003,91871.0,91870.0,0.07341]
[1764870107045,0.003,91871.0,91870.0,0.10273606]
[1764870107438,0.03267,91871.0,91870.0,0.05701]
[1764870108234,0.003,91871.0,91870.0,0.07341]
[1764870108844,0.02879332,91884.0,91883.0,0.05575]
[1764870109145,0.05796332,91884.0,91883.0,0.05575]
[1764870109353,0.00016332,91884.0,91883.0,0.05575]
[1764870109737,0.3608,91900.0,91885.0,0.05575]
[1764870109935,0.3608,91909.0,91908.0,0.02796]
[1764870110139,0.38943,91909.0,91908.0,0.05575]
[1764870110436,0.38943,91909.0,91900.0,0.04593446]
[1764870110437,0.3716761,91919.0,91910.0,0.0164]
[1764870110644,0.3716761,91919.0,91918.0,0.05575]
[1764870110840,0.4294761,91919.0,91918.0,0.05575]
[1764870111147,0.4294761,91919.0,91909.0,0.00016323]
[1764870111148,0.0686771,91910.0,91909.0,0.00016323]
[1764870111347,0.0686771,91910.0,91909.0,0.05591323]
[1764870111543,0.0686771,91910.0,91909.0,0.00016323]
[1764870111742,0.4294771,91910.0,91909.0,0.00016323]
[1764870112241,0.0578,91909.0,91908.0,0.002]
[1764870112543,0.02863,91893.0,91892.0,0.3608]
[1764870112749,0.0578,91893.0,91892.0,0.41655]
[1764870113150,0.0395091,91894.0,91893.0,0.0666291]
[1764870113453,0.0578,91894.0,91893.0,0.0666291]
[1764870113845,0.02863,91894.0,91893.0,0.0666291]
[1764870114945,0.0395088,91896.0,91895.0,0.05575]
[1764870115144,0.0578,91896.0,91895.0,0.05575]
[1764870116348,0.0658,91896.0,91895.0,0.05675]
[1764870116546,0.03663,91896.0,91895.0,0.05675]
[1764870116866,0.00016323,91903.0,91902.0,0.0666281]
[1764870117244,0.02879323,91903.0,91902.0,0.0666281]
[1764870117445,0.02879323,91903.0,91902.0,0.05575]
[1764870117646,0.0578,91897.0,91896.0,0.05575]
[1764870117946,0.0686786,91897.0,91896.0,0.05575]
[1764870118337,0.0108784,91900.0,91899.0,0.0108781]
[1764870118540,0.0108784,91900.0,91899.0,0.0666281]
[1764870119449,0.0158784,91900.0,91899.0,0.0676281]
[1764870119848,0.005,91900.0,91899.0,0.0676281]
[1764870121053,0.008,91900.0,91899.0,0.0676281]
[1764870121548,0.00016323,91903.0,91902.0,0.0666281]
[1764870121853,0.00027196,91926.0,91902.0,0.0666281]
[1764870121854,0.00027196,91926.0,91925.0,0.0666253]
[1764870122052,0.02863,91949.0,91948.0,0.02779]
[1764870122256,0.06022002,91949.0,91948.0,0.02779]
[1764870122643,0.06022002,91949.0,91939.0,0.3608]
[1764870122644,0.010873,91946.0,91945.0,0.0108727]
[1764870122857,0.068673,91946.0,91945.0,0.0388327]
[1764870123058,0.068673,91946.0,91945.0,0.0666227]
[1764870123353,0.0108728,91947.0,91946.0,0.05575]
[1764870124653,0.0395028,91947.0,91946.0,0.05575]
[1764870125157,0.0687228,91947.0,91946.0,0.05675]
[1764870125552,0.0108724,91950.0,91947.0,0.0108727]
[1764870125754,0.0407424,91950.0,91949.0,0.0572]
[1764870126447,0.0699624,91950.0,91949.0,0.0572]
[1764870126649,0.00016313,91958.0,91957.0,0.0572]
[1764870126650,0.05925313,91958.0,91957.0,0.0572]
[1764870126953,0.06167315,91958.0,91957.0,0.0572]
[1764870127151,0.07254455,91958.0,91957.0,0.02804]
[1764870127350,0.03003313,91958.0,91957.0,0.0572]
[1764870127549,0.02987,91952.0,91951.0,0.0680722]
[1764870127958,0.0407421,91952.0,91951.0,0.0680722]
[1764870128157,0.02987,91952.0,91951.0,0.0680722]
[1764870128543,0.02987,91952.0,91951.0,0.0770722]
[1764870128749,0.03087,91952.0,91951.0,0.0770722]
[1764870129065,0.0108718,91956.0,91955.0,0.0108718]
[1764870129253,0.0108718,91956.0,91955.0,0.0680718]
[1764870129558,0.0407418,91956.0,91955.0,0.0680718]
[1764870129948,0.0699618,91956.0,91955.0,0.0680718]
[1764870130551,0.0699621,91952.0,91951.0,0.03604]
[1764870130956,0.0699621,91952.0,91951.0,0.0652]
[1764870131149,0.0699621,91952.0,91951.0,0.0662]
[1764870131150,0.0709621,91952.0,91951.0,0.0662]
[1764870131353,0.0709621,91952.0,91951.0,0.009]
[1764870131658,0.05909,91950.0,91949.0,0.3608]
[1764870131867,0.06151002,91950.0,91949.0,0.3608]
[1764870132360,0.06151002,91950.0,91933.0,0.50888]
[1764870132361,0.0699636,91940.0,91933.0,0.50888]
[1764870132553,0.0699636,91940.0,91939.0,0.39987673]
[1764870132748,0.0699636,91940.0,91939.0,0.42903673]
[1764870133152,0.0407429,91946.0,91945.0,0.0400329]
[1764870133355,0.0407429,91946.0,91945.0,0.0680729]
[1764870134259,0.0108725,91949.0,91948.0,0.0108725]
[1764870134452,0.0108725,91949.0,91948.0,0.4288725]
[1764870135755,0.0118725,91949.0,91948.0,0.4428725]
[1764870135959,0.001,91949.0,91948.0,0.4428725]
[1764870137357,0.0108722,91952.0,91951.0,0.0680723]
[1764870137551,0.0699616,91957.0,91956.0,0.0108716]
[1764870137754,0.0699616,91957.0,91956.0,0.0680716]
[1764870138152,0.05909,91957.0,91956.0,0.0680716]
[1764870138352,0.00027184,91966.0,91957.0,0.0572]
[1764870138751,0.00027184,91966.0,91965.0,0.0680706]
[1764870138952,0.00027184,91966.0,91965.0,0.4288706]
[1764870139356,0.00269186,91966.0,91965.0,0.4288706]
[1764870139555,0.05936184,91966.0,91965.0,0.3608]
[1764870139956,0.0699614,91958.0,91957.0,1.5]
[1764870141062,0.05909,91957.0,91956.0,0.009]
[1764870141364,0.05909,91949.0,91948.0,0.0108726]
[1764870141564,0.05909,91949.0,91948.0,1.5680726]
[1764870143356,0.06009,91949.0,91948.0,1.5680726]
[1764870143558,0.06109,91949.0,91948.0,1.5750726]
[1764870144165,0.06009,91949.0,91948.0,0.0780726]
[1764870144365,0.06009,91949.0,91948.0,0.0208726]
[1764870144663,0.06009,91949.0,91948.0,0.0188726]
[1764870144859,0.06009,91949.0,91948.0,0.008]
[1764870145553,0.05909,91943.0,91942.0,0.0108733]
[1764870145759,0.05909,91942.0,91941.0,0.3608]
[1764870146059,0.01721,91940.0,91923.0,0.3608]
[1764870146261,0.01721,91940.0,91912.0,0.3608]
[1764870146262,0.0699668,91913.0,91912.0,0.37279878]
[1764870146471,0.0699668,91913.0,91912.0,0.01199878]
[1764870146857,0.02987,91909.0,91908.0,0.0572]
[1764870147164,0.06151002,91909.0,91908.0,0.0572]
[1764870147462,0.06151002,91909.0,91908.0,0.02804]
[1764870148069,0.06151002,91909.0,91908.0,0.0572]
[1764870148366,0.06251002,91909.0,91908.0,0.0652]
[1764870148762,0.06151002,91909.0,91908.0,0.0572]
[1764870148969,0.06251002,91909.0,91908.0,0.03604]
[1764870150469,0.06251002,91909.0,91908.0,0.0652]
[1764870151060,0.42331002,91909.0,91908.0,0.008]
[1764870151666,0.001,91909.0,91908.0,0.426]
[1764870151861,0.001,91909.0,91908.0,0.0760773]
[1764870152263,0.06251002,91909.0,91908.0,0.008]
[1764870152862,0.06251002,91909.0,91908.0,0.03604]
[1764870153372,0.06251002,91909.0,91908.0,0.03704]
[1764870153571,0.06251002,91909.0,91908.0,0.0662]
[1764870153868,0.001,91909.0,91908.0,0.0662]
[1764870154059,0.002,91909.0,91908.0,0.426]
[1764870154258,0.002,91909.0,91908.0,0.0652]
[1764870154465,0.001,91909.0,91908.0,0.0572]
[1764870154665,0.002,91909.0,91908.0,0.0642]
[1764870155471,0.001,91909.0,91908.0,0.0642]
[1764870155771,0.0108772,91910.0,91909.0,0.05669]
[1764870156269,0.0406572,91910.0,91909.0,0.05669]
[1764870156472,0.0693172,91910.0,91909.0,0.05669]
[1764870157368,0.0108772,91910.0,91909.0,0.05669]
[1764870157672,0.0693172,91910.0,91909.0,0.05669]
[1764870157875,0.0703172,91910.0,91909.0,0.06569]
[1764870158175,0.0873172,91910.0,91909.0,0.06569]
[1764870158376,0.0873172,91910.0,91909.0,0.06469]
[1764870159768,0.0873172,91910.0,91909.0,0.008]
[1764870159970,0.0873172,91910.0,91909.0,0.03752]
[1764870160672,0.0883172,91910.0,91909.0,0.03652]
[1764870161268,0.0883172,91910.0,91909.0,0.007]
[1764870161675,0.07644,91910.0,91909.0,0.05669]
[1764870161877,0.07644,91910.0,91909.0,0.06369]
[1764870161878,0.002,91910.0,91909.0,0.06369]
[1764870163577,0.001,91910.0,91909.0,0.06569]
[1764870163777,0.00016313,91918.0,91917.0,0.05669]
[1764870164889,0.00258315,91918.0,91917.0,0.0675663]
[1764870165065,0.00116313,91918.0,91917.0,0.06669]
[1764870165380,0.05960313,91918.0,91917.0,0.06669]
[1764870166582,0.00116313,91918.0,91917.0,0.06669]
[1764870166980,0.03062313,91918.0,91917.0,0.06669]
[1764870167676,0.06013313,91918.0,91917.0,0.06669]
[1764870167877,0.06013313,91918.0,91917.0,0.08307]
[1764870167878,0.00116313,91918.0,91917.0,0.08307]
[1764870169388,0.06013313,91918.0,91917.0,0.08307]
[1764870169582,0.06013313,91918.0,91917.0,0.06669]
[1764870170485,0.05913313,91918.0,91917.0,0.05669]
[1764870170674,0.06013313,91918.0,91917.0,0.06669]
[1764870171078,0.05913313,91918.0,91917.0,0.05669]
[1764870171285,0.06013313,91918.0,91917.0,0.06469]
[1764870171578,0.00116313,91918.0,91917.0,0.06469]
[1764870172978,0.00016313,91918.0,91917.0,0.05669]